Cogmind - Beta 13 @@@ ROGUE MODE // 2024.04.13 @ 18:28:42 Player: Dosh Result: Destroyed by D-53 Grenadier with Mini Grenade Launcher Performance ------------- Evolutions (0) 0 Regions Visited (2) 400 Robots Destroyed (41) 205 Value Destroyed (1059) 1059 Prototype IDs (4) 80 Alien Tech Used (0) 0 Bonus (0) 0 TOTAL SCORE: 1744 Bonus ------- None Cogmind --------- Core Integrity 0/250 Matter 22/300 Energy 90/100 System Corruption 2% Temperature Cool (0) Movement Treading (240) Ox1 Location -10/Mines Parts ------- > --- POWER (1) -------- (None) > --- PROPULSION (2) --- Light Treads (fused) > --- UTILITY (2) ------ Large Storage Unit Improved Trap Extractor (0/6) > --- WEAPON (2) ------- Light Assault Rifle > --- INVENTORY (15) --- Improved Ion Engine Light Treads Aluminum Leg Actuator Array Light Armor Plating Light Armor Plating Hardened Medium Armor Plating Hardlight Generator Heavy Assault Rifle Peak State ------------ > --- POWER ------------ Improved Ion Engine > --- PROPULSION ------- Light Treads > --- UTILITY ---------- Large Storage Unit Improved Trap Extractor > --- WEAPON ----------- Light Assault Rifle Rocket Launcher > --- INVENTORY -------- Improved Ion Engine Light Treads Aluminum Leg Actuator Array Light Armor Plating Light Armor Plating Hardened Medium Armor Plating Hardlight Generator Heavy Assault Rifle [Rating: 12] Favorites ----------- Power Improved Ion Engine Engine Improved Ion Engine Power Core Light Nuclear Core Propulsion Aluminum Leg Treads Light Treads Leg Aluminum Leg Utility Large Storage Unit Device Improved Trap Extractor Storage Large Storage Unit Protection Light Armor Plating Weapon Light Assault Rifle Ballistic Gun Light Assault Rifle Launcher Rocket Launcher Build | -11 -10 -10 ------- Run | Yrd Mat Min Slots Evolved . | . . . Power . | . . . Propulsion . | . . . Utility . | . . . Weapon . | . . . Parts Attached 38 | 7 20 11 Power 6 | 2 3 1 Engine 5 | 2 2 1 Core 1 | . 1 . Reactor . | . . . Propulsion 13 | 2 7 4 Treads 3 | . . 3 Leg 10 | 2 7 1 Wheel . | . . . Hover . | . . . Flight . | . . . Utility 6 | 1 3 2 Device 1 | . . 1 Storage 3 | 1 2 . Processor . | . . . Hackware . | . . . Protection 2 | . 1 1 Artifact . | . . . Weapon 13 | 2 7 4 Energy Gun . | . . . Energy Cannon . | . . . Ballistic Gun 7 | 2 3 2 Ballistic Cannon . | . . . Launcher 6 | . 4 2 Special Weapon . | . . . Impact Weapon . | . . . Slashing Weapon . | . . . Piercing Weapon . | . . . Special Melee Weapon . | . . . Unidentified Prototypes . | . . . Parts Lost 12 | . 4 8 Power 3 | . 1 2 Propulsion 5 | . 2 3 Utility . | . . . Weapon 4 | . 1 3 Highest Loss Streak 3 | . 2 3 To Critical Strikes . | . . . Average Slot Usage (%) 83 | . 81 87 Engine 12 | . 11 14 Treads 3 | . . 10 Leg 19 | . 25 5 Device 1 | . . 5 Storage 14 | . 14 14 Protection 3 | . . 8 Ballistic Gun 21 | . 23 15 Launcher 6 | . 4 12 Naked Turns . | . . . Heaviest Build 40 | 13 35 40 Greatest Support 20 | 20 20 20 Greatest Overweight (x) 3 | 3 3 3 Average Overweight (x) . | . . 1 Largest Inventory Capacity 15 | 8 15 15 Average Capacity 13 | 7 12 15 Most Carried 9 | 2 7 9 Average Carried 5 | . 5 7 Final Capacity 15 | 8 15 15 Final Carried 9 | 2 6 9 Class Distribution -------------------- 100% | Mutant Dominant Class ---------------- Mutant | -10/Materials Mutant | -10/Mines Resources | -11 -10 -10 ----------- Run | Yrd Mat Min Matter Collected 1101 | 164 869 68 Remotely . | . . . Salvage Created 1404 | . 1099 305 Parts 79 | . 69 10 Haulers Intercepted 1 | . 1 . Recyclers Shooed 6 | . 6 . Parts Field Recycled . | . . . Retrieved Matter . | . . . Parts Self-Destructed . | . . . Prevented . | . . . Kills | -11 -10 -10 ------- Run | Yrd Mat Min Combat Hostiles Destroyed 40 | . 18 22 Guns 10 | . 9 1 AOE 30 | . 9 21 Classes Destroyed 9 | . 7 2 Worker 6 | . 5 1 Builder 2 | . 2 . Hauler 1 | . 1 . Recycler 5 | . 4 1 Operator 1 | . 1 . Watcher 2 | . 2 . Grunt 22 | . 18 4 Sentry 2 | . . 2 Assembled 16 | . . 16 Best Kill Streak 22 | . 3 22 Combat Bots Only 16 | . 3 16 Max Kills in Single Turn 5 | . 2 5 Gunslinging . | . . . Exploded 5 | . 2 5 Melee . | . . . Uniques/NPCs Destroyed . | . . . Combat | -11 -10 -10 -------- Run | Yrd Mat Min Hostile Shots Fired 128 | . 72 56 Missed 46 | . 28 18 Damage Taken 1508 | . 766 742 Core 251 | . 66 185 Absorbed by Shields . | . . . Core Remaining (%) 100 | 100 . . Volleys Fired 136 | . 106 30 Largest 2 | . 2 2 Hottest 53 | . 53 53 Shots Fired 250 | . 212 38 Gun 217 | . 196 21 Cannon . | . . . Launcher 33 | . 16 17 Special . | . . . Kinetic 217 | . 196 21 Thermal . | . . . Explosive 33 | . 16 17 Electromagnetic . | . . . Robot Hit Streak 11 | . 9 11 Robot Miss Streak 4 | . 4 3 Penetration Max . | . . . Secondary Targets 1 | . 1 . Max Gunslinging Chain 1 | . 1 . Shots Hit Robots 151 | . 128 23 Core Hits 110 | . 59 51 Critical Kills . | . . . Critical Parts Destroyed 2 | . 1 1 Critical Strikes 2 | . 1 1 Destroy 2 | . 1 1 Melee Attacks . | . . . Impact . | . . . Slashing . | . . . Piercing . | . . . Sneak Attacks . | . . . Combat Hostiles . | . . . Follow-up Attacks . | . . . Damage Inflicted 3965 | . 2079 1886 Guns 1366 | . 1243 123 Cannons . | . . . Explosions 2594 | . 835 1759 Melee . | . . . Ramming 5 | . 1 4 Kinetic 1366 | . 1243 123 Thermal . | . . . Explosive 2505 | . 746 1759 Electromagnetic 89 | . 89 . Impact . | . . . Slashing . | . . . Piercing . | . . . Highest Corruption 2 | . 2 2 Average Corruption 2 | . 2 2 Corruption Purged . | . . . Corruption Blocked . | . . . Effects 29 | . 20 9 Message Errors 2 | . . 2 Matter Fused 12 | . 11 1 Heat Flow Errors 9 | . 5 4 Energy Discharges 1 | . 1 . Parts Fused 1 | . . 1 Data Loss (minor) 3 | . 2 1 Data Loss (major) 1 | . 1 . Overload Shots . | . . . Overflow Damage 74 | . 20 54 Projectiles . | . . . Explosions 74 | . 20 54 Melee . | . . . Knockbacks . | . . . Impact . | . . . Kinetic . | . . . Secondary . | . . . Self-Inflicted Damage 276 | . 206 70 Shots 8 | . 6 2 Rammed 2 | . . 2 Targets Rammed 4 | . 2 2 Kicked 2 | . 2 . Crushed . | . . . Highest Temperature 251 | . 251 143 Average Temperature 39 | . 41 35 Received Heat Transfer 447 | . 291 156 Siege Activations . | . . . Robots Corrupted . | . . . Combat Hostiles . | . . . Parts Fried . | . . . Impact Corruptions . | . . . Robots Melted . | . . . Combat Hostiles . | . . . Parts Melted . | . . . Heat Transferred . | . . . Parts Sabotaged . | . . . Parts Stolen . | . . . Parts Stripped . | . . . Power Chain Reactions . | . . . Alert | -11 -10 -10 ------- Run | Yrd Mat Min Peak Influence 374 | . 374 305 Initial 118 | . . 118 Average 202 | . 241 140 Maximum Alert Level 1 | . 1 1 Low Security (%) 41 | 100 23 72 Level 1 58 | . 76 27 Level 2 . | . . . Level 3 . | . . . Level 4 . | . . . Level 5 . | . . . High Security . | . . . Max Security . | . . . Squads Dispatched 6 | . 6 . Investigation 5 | . 5 . Extermination . | . . . Reinforcement 1 | . 1 . Assault . | . . . Garrison . | . . . Intercept . | . . . Searches Triggered . | . . . Construction Impeded . | . . . Haulers Reinforced . | . . . Active Scanning Responses . | . . . Cargo Convoy Interrupts . | . . . Stealth | -11 -10 -10 --------- Run | Yrd Mat Min Distress Signals 4 | . 4 . Communications Jammed . | . . . Distress Signals . | . . . Times Spotted 51 | . 31 20 Peak Tracking Total 17 | . 5 17 Tactical Retreats 4 | . 3 1 Traps | -11 -10 -10 ------- Run | Yrd Mat Min Traps Triggered 5 | . 4 1 Indirectly . | . . . Trap Hack Attempts . | . . . Triggered . | . . . Disarmed . | . . . Reprogrammed . | . . . Reused . | . . . Traps Extracted . | . . . Installed . | . . . Triggered . | . . . Machines | -11 -10 -10 ---------- Run | Yrd Mat Min Machines Disabled 8 | . 6 2 Max in Single Turn 2 | . 1 2 Machines Repaired . | . . . Machines Dismantled . | . . . Machines Sabotaged . | . . . Overloaded Fab Kills . | . . . Hacking | -11 -10 -10 --------- Run | Yrd Mat Min Machines Accessed 10 | . 9 1 Terminals 7 | . 7 . Fabricators . | . . . Repair Stations . | . . . Recycling Units 2 | . 2 . Scanalyzers . | . . . Garrison Access . | . . . Total Hacks 28 | . 27 1 Successful 15 | . 14 1 Failed 12 | . 12 . Catastrophic 1 | . 1 . Database Lockouts 1 | . 1 . Manual 12 | . 12 . Terminals 22 | . 22 . Fabricators . | . . . Repair Stations . | . . . Recycling Units 5 | . 5 . Scanalyzers . | . . . Garrison Access . | . . . Terminal Hacks 12 | . 11 1 Robot Analysis 3 | . 3 . Prototype ID Bank 2 | . 2 . Open Door 1 | . . 1 Locate Traps 2 | . 2 . Recall Investigation 1 | . 1 . Recall Reinforcements 1 | . 1 . Hauler Manifests 1 | . 1 . Zone Layout 1 | . 1 . Fabricator Hacks . | . . . Repair Station Hacks . | . . . Recycling Unit Hacks 1 | . 1 . Retrieve Components 1 | . 1 . Scanalyzer . | . . . Garrison Access Hacks . | . . . Unauthorized Hacks 2 | . 2 . Terminals 1 | . 1 . Botnet 1 | . 1 . Fabricators . | . . . Repair Stations . | . . . Recycling Units 1 | . 1 . Tunnel 1 | . 1 . Scanalyzers . | . . . Garrison Access . | . . . Data Cores Recovered . | . . . Used . | . . . Hacking Detections 8 | . 8 . Full Trace Events 5 | . 5 . Feedback Events . | . . . Feedback Blocked . | . . . Robot Schematics Acquired . | . . . Robots Built . | . . . Authchips . | . . . Time . | . . . Total Robot Build Rating . | . . . Part Schematics Acquired . | . . . Parts Built . | . . . Authchips . | . . . Time . | . . . Total Part Build Rating . | . . . Parts Repaired . | . . . Time . | . . . Parts Recycled . | . . . Recycled Matter . | . . . Retrieved Matter . | . . . Retrieved Components 8 | . 8 . Parts Scanalyzed . | . . . Part Schematics Acquired . | . . . Parts Damaged . | . . . Bothacking | -11 -10 -10 ------------ Run | Yrd Mat Min Used RIF Installer . | . . . Robots Hacked . | . . . Non-combat . | . . . Combat . | . . . Robot Hacks Applied . | . . . Relay Couplers Released . | . . . Fabnet Peak Effective % . | . . . Robots Rewired . | . . . Allies Hacked . | . . . Hacks Repelled . | . . . Allies | -11 -10 -10 -------- Run | Yrd Mat Min Total Allies . | . . . Largest Group . | . . . Highest-Rated Group . | . . . Highest-Rated Ally . | . . . Total Orders . | . . . Ally Attacks . | . . . Total Damage . | . . . Kills . | . . . Allies Corrupted . | . . . Allies Melted . | . . . Intel | -11 -10 -10 ------- Run | Yrd Mat Min Robot Analysis Total 3 | . 3 . Derelict Logs Recovered . | . . . Drone Launches . | . . . Drone Recoveries . | . . . Exploration | -11 -10 -10 ------------- Run | Yrd Mat Min Turns Passed 2767 | 79 1795 893 Spaces Moved 1265 | 61 879 325 Core 22 | 22 . . Treads 255 | . . 255 Legs 988 | 39 879 70 Wheels . | . . . Hover . | . . . Flight . | . . . Fastest Speed 50 | 50 120 190 Average Speed 179 | 112 165 230 Slowest Speed 330 | 200 330 330 Overloaded Moves . | . . . Propulsion Burnouts . | . . . Robots Hopped . | . . . Cave-ins Triggered . | . . . Exploration Rate (%) 55 | 5 96 64 Regions Visited 2 Branch Regions 1 Pre-discovered Areas 1 | . 1 . Known Exits Taken . | . . . Unknown Exits Taken 2 | 1 1 . Scrap Searched . | . . . Spaces Dug . | . . . Terrain Destroyed 193 | . 112 81 Melee . | . . . Projectile . | . . . AOE 193 | . 112 81 Terrain Rammed . | . . . Walls Destroyed . | . . . Machines Disabled . | . . . Actions | -11 -10 -10 --------- Run | Yrd Mat Min Total 1513 | 68 1018 427 Wait 55 | . 1 54 Move 1263 | 60 878 325 Hop . | . . . Pick Up 10 | 1 4 5 Fast Attach 16 | 6 8 2 Attach 5 | . 2 3 Detach 2 | . 2 . Swap 17 | 1 10 6 Drop 5 | . 5 . Fire 136 | . 106 30 Melee . | . . . Ram . | . . . Kick 2 | . 2 . Crush 2 | . . 2 Escape Stasis . | . . . Rewire . | . . . Trap . | . . . Miscellaneous . | . . . Route ------- -11/Scrapyard -10/Materials (discovered 4 exits: [*Mat x3] / *Min) -10/Mines (discovered 1 exit: [*Mat]) History --------- Turn | Location | Event 35 | -11/Scrapyard | Discovered new exit (range 15) 80 | -11/Scrapyard | Entered Materials 314 | -10/Materials | Build established: Mutant 384 | -10/Materials | Discovered new exit (range 15) 412 | -10/Materials | Central database locked down 446 | -10/Materials | Discovered new exit (range 15) 827 | -10/Materials | Discovered new exit (range 5) 880 | -10/Materials | Discovered new exit (range 18) 1875 | -10/Materials | Entered Mines 1931 | -10/Mines | Core integrity fell below 50% 1959 | -10/Mines | Lost 3 parts (1n2w) 2051 | -10/Mines | Assembled infested the area 2104 | -10/Mines | Destroyed 16 combat bots 2111 | -10/Mines | Lost 3 parts (1p2n) 2327 | -10/Mines | Met a Derelict who couldn't figure out how to use a Trap Extractor 2397 | -10/Mines | Discovered new exit (range 10) 2757 | -10/Mines | Core integrity fell below 20% 2768 | -10/Mines | Destroyed by D-53 Grenadier with Mini Grenade Launcher Last Messages --------------- 02360_ Machine disabled. 02365_ Acquired Corrupted Actuator Array. 02375_ System corrupted: Heat flow error (+125). 02397_ EXIT=FOUND 02445_ K-01 Serf collects debris. 02446_ System corrupted: Component data lost. 02448_ K-01 Serf collects debris. 02499_ System corrupted: FCS attempts to trigger Rocket Launcher. 02525_ K-01 Serf cleans the Pulverizer. 02554_ Slammed into K-01 Serf. 02596_ System corrupted: Heat flow error (+143). 02607_ Slammed into R-06 Scavenger. 02704_ System corrupted: Heat flow error (+161). 02735_ K-01 Serf collects debris. 02741_ K-01 Serf cleans the SHOP.Sys. 02756_ SHOP.Sys disabled. 02762_ Rocket Launcher destroyed. 02762_ Imp. Ion Engine destroyed. 02763_ System corrupted: Lgt. Treads fused. 02766_ The unstable cave ceiling collapses. Map ----- +----------------------------------------------------+ | ????????????????????????????# ##?????? | | ???????????????????????????## #?????? | | ??????????????????????????## ???? | | ??????????????????????????# " ???? | | ??????????????????????????# ## ??? | | ??????????????????????????## ##?# ##???? | | ?????????????????????######## ##???###????? | | ????????????????####?# ####???????????? | | ???????????????## #?# ##??????????????? | | ???????????????# #?# #########???????????????? | | ?????????##????# #?# #???????????????????????? | | ????????## ???# ### #????????????####???????? | | ????????# ???# #???????????# ###?????? | | ????????# #?## #???????#### #?????? | | ????###### ## #####?????## ?????? | | ?# ##???????## ??##???? | | ?# d##??????# ???? ???? | | ???? ###### ## d ##????## ??????? ???? | | ??????????###?# ###?## #????????? #???? | | ??????????????# k ### #???####??? #???? | | ???????????#### k # ## #??## ##?# #???? | | ???????????# =## # #### ### #???# | | ???????????# ! ## ##??# | | ???????????# ]^ #??# | | ???????????# #??# | | ???????????# ^]# @ ##??# | | ???????????#"[### ######## ##### | | ???????????####### ##??????# | | ?????????????## #???????## | | ?????????????# ### ##????????##### ###### | | ?????????????# ###?# #?????????????####????# | | ?????????????# ##???# #?????????????????????# | | ?????????????## ##????# #?????????????????????# | | ??????????????###??????# #?????????????????????? | | ???????????????????##### #?????????????????????? | | ??????????????????## #?????????????????????? | | ????????????????### < #?????????????????????? | | ????????????????# #?????????????????????? | | ????????????????# ##?????????????????????? | | ????????????????##########??????????????????????? | | ????????????????????????????????????????????????? | | ????????????????????????????????????????????????? | | ????????????????????????????????????????????????? | | | | | | | | | | | | | | | +----------------------------------------------------+ Best States ------------- Heat Dissipation 25 Energy Generation 14 Energy Capacity 265 Matter Stores 300 Matter Capacity 300 Sight Range 16 Terrain Scan Density 10 Armor Coverage 225 Evasion (%) 55 Recoil Reduction 1 Trap Extractor Capacity 6 Item Schematics ----------------- None Robot Schematics ------------------ None Fabricated ------------ Nothing Alien Tech Used ----------------- None Achievements -------------- None Challenges ------------ None Game ------ Seed UltimateCarbidePendant Manual? 0 Play Time 00:12:16 Cumulative 332.0 hours Start 2024.04.13 @ 18:19:15 End 2024.04.13 @ 18:28:42 Sessions 1 Manual Loads 0 Difficulty Rogue Special Mode None Game No. 221 Rogue 221 Adventurer 0 Explorer 0 Win Type - Total 19 Types 12/2/2/1/1/0/0/1/0 Lore% 79 Gallery% 84 Achievement% 74 Wizard Run 0 Options --------- Layout 0 ASCII 0 Keyboard 1 Movement Numpad Keybinds 0 Fullscreen 2 Font 18/SmallcapsGlow Map View 76x50 Zoom Use 0% Tactical HUD 1 Map Filters NONE Filters NONE Steam 1 RUN: 5b2f4c02-52e7-42e7-a635-3982ea7c5e90